[Event "Late-Titled-Tuesday-Blitz-September-26-2023"]
[Site "Chess.com"]
[Date "2023.09.26"]
[Round "7"]
[White "SpeedofLight0"]
[Black "Zhigalko_Sergei"]
[Result "0-1"]
[WhiteElo "3050"]
[BlackElo "2921"]
[TimeControl "180+1"]
[EndTime "15:14:27 PDT"]
[Termination "Zhigalko_Sergei won by resignation"]

1. e4 {[%clk 0:03:00.9]} 1... c5 {[%clk 0:02:59.8]} 2. Nf3 {[%clk 0:03:00.3]}
2... Nc6 {[%clk 0:03:00.4]} 3. Bb5 {[%clk 0:02:59.8]} 3... Nf6 {[%clk
0:03:00.9]} 4. d3 {[%clk 0:02:57.5]} 4... Qa5+ {[%clk 0:03:00.6]} 5. Nc3 {[%clk
0:02:57.4]} 5... Nd4 {[%clk 0:03:01.2]} 6. Bc4 {[%clk 0:02:56.5]} 6... b5 {[%clk
0:03:01.8]} 7. Bb3 {[%clk 0:02:46.1]} 7... Nxb3 {[%clk 0:03:01.8]} 8. cxb3
{[%clk 0:02:46.3]} 8... d6 {[%clk 0:03:02.4]} 9. O-O {[%clk 0:02:45]} 9... e6
{[%clk 0:03:02.4]} 10. d4 {[%clk 0:02:44]} 10... b4 {[%clk 0:03:02.1]} 11. e5
{[%clk 0:02:32.8]} 11... bxc3 {[%clk 0:03:01.9]} 12. exf6 {[%clk 0:02:30.4]}
12... gxf6 {[%clk 0:03:02.8]} 13. d5 {[%clk 0:02:25.8]} 13... Bb7 {[%clk
0:02:34.8]} 14. dxe6 {[%clk 0:02:24.8]} 14... fxe6 {[%clk 0:02:35.7]} 15. Re1
{[%clk 0:02:14]} 15... e5 {[%clk 0:02:32.6]} 16. Nh4 {[%clk 0:02:07.3]} 16...
O-O-O {[%clk 0:02:24.4]} 17. Qd3 {[%clk 0:02:00.6]} 17... cxb2 {[%clk
0:01:59.3]} 18. Bxb2 {[%clk 0:02:01.5]} 18... Kb8 {[%clk 0:01:53.1]} 19. Bc3
{[%clk 0:01:52.4]} 19... Qc7 {[%clk 0:01:46]} 20. Rac1 {[%clk 0:01:36.9]} 20...
Rg8 {[%clk 0:01:45.4]} 21. Bd2 {[%clk 0:01:30.2]} 21... Rg4 {[%clk 0:01:22.9]}
22. Qh3 {[%clk 0:01:19.7]} 22... Bc8 {[%clk 0:01:22.8]} 23. b4 {[%clk 0:01:12]}
23... Rd4 {[%clk 0:01:16.1]} 24. Qe3 {[%clk 0:00:43.9]} 24... Rxh4 {[%clk
0:01:14.1]} 25. bxc5 {[%clk 0:00:44.6]} 25... dxc5 {[%clk 0:01:11.3]} 26. Rb1+
{[%clk 0:00:39.4]} 26... Bb7 {[%clk 0:01:11.1]} 27. Bc3 {[%clk 0:00:30.9]} 27...
Qc6 {[%clk 0:00:48.1]} 28. Qg3 {[%clk 0:00:26.6]} 28... Rh6 {[%clk 0:00:35.2]}
29. f3 {[%clk 0:00:22.4]} 29... Rg6 {[%clk 0:00:31.6]} 30. Qh3 {[%clk
0:00:16.4]} 30... Rd3 {[%clk 0:00:23.7]} 31. Rb3 {[%clk 0:00:09.1]} 31... Rxf3
{[%clk 0:00:19.8]} 32. Bxe5+ {[%clk 0:00:03.5]} 32... fxe5 {[%clk 0:00:19.2]}
33. Rxf3 {[%clk 0:00:03.2]} 33... Qxf3 {[%clk 0:00:18.7]} 34. Qxf3 {[%clk
0:00:01.8]} 34... Bxf3 {[%clk 0:00:19.6]} 35. g3 {[%clk 0:00:02.5]} 35... e4
{[%clk 0:00:18.7]} 36. Kf2 {[%clk 0:00:02.4]} 36... c4 {[%clk 0:00:18.9]} 37.
Ke3 {[%clk 0:00:02.7]} 37... Bc5+ {[%clk 0:00:18.9]} 38. Kf4 {[%clk 0:00:03.1]}
38... c3 {[%clk 0:00:18.9]} 39. Rc1 {[%clk 0:00:03.2]} 39... Bd4 {[%clk
0:00:18.8]} 40. Rb1+ {[%clk 0:00:02.8]} 40... Rb6 {[%clk 0:00:18.8]} 41. Rb4
{[%clk 0:00:03.7]} 41... Rxb4 {[%clk 0:00:19]} 0-1

[Event "Late-Titled-Tuesday-Blitz-September-26-2023"]
[Site "Chess.com"]
[Date "2023.09.26"]
[Round "7"]
[White "korason34"]
[Black "ErikRonka"]
[Result "1-0"]
[WhiteElo "2653"]
[BlackElo "2492"]
[TimeControl "180+1"]
[EndTime "15:14:28 PDT"]
[Termination "korason34 won by resignation"]

1. e4 {[%clk 0:03:00.9]} 1... c5 {[%clk 0:02:59.3]} 2. Nf3 {[%clk 0:02:59.4]}
2... e6 {[%clk 0:02:59.1]} 3. d4 {[%clk 0:02:59.8]} 3... cxd4 {[%clk 0:03:00]}
4. Nxd4 {[%clk 0:03:00.4]} 4... Nf6 {[%clk 0:03:00.2]} 5. Nc3 {[%clk 0:03:01.1]}
5... d6 {[%clk 0:03:00.4]} 6. g4 {[%clk 0:03:00.7]} 6... h6 {[%clk 0:03:00.4]}
7. h4 {[%clk 0:03:00.6]} 7... Nc6 {[%clk 0:02:59.8]} 8. Rg1 {[%clk 0:03:00.8]}
8... d5 {[%clk 0:03:00]} 9. exd5 {[%clk 0:03:00.9]} 9... Nxd5 {[%clk 0:03:00.9]}
10. Nxd5 {[%clk 0:03:01.4]} 10... exd5 {[%clk 0:03:01.8]} 11. Be3 {[%clk
0:02:58.4]} 11... Qxh4 {[%clk 0:03:02]} 12. Qd3 {[%clk 0:02:49.5]} 12... Bxg4
{[%clk 0:02:35.1]} 13. Bg2 {[%clk 0:02:34.1]} 13... Rd8 {[%clk 0:02:16.5]} 14.
Qb5 {[%clk 0:02:01.7]} 14... Bd7 {[%clk 0:02:03.2]} 15. Qd3 {[%clk 0:01:11.6]}
15... Nxd4 {[%clk 0:00:48.8]} 16. Bxd4 {[%clk 0:01:10.4]} 16... Qe7+ {[%clk
0:00:46.1]} 17. Kf1 {[%clk 0:01:03.7]} 17... Be6 {[%clk 0:00:44.6]} 18. Re1
{[%clk 0:00:59.3]} 18... Kd7 {[%clk 0:00:30]} 19. Bxa7 {[%clk 0:00:45.8]} 19...
Kc8 {[%clk 0:00:27.8]} 20. Bb6 {[%clk 0:00:44.7]} 20... Rd7 {[%clk 0:00:17.7]}
21. Qc3+ {[%clk 0:00:40.8]} 21... Kb8 {[%clk 0:00:16.1]} 22. Qa5 {[%clk
0:00:40.5]} 22... Rd6 {[%clk 0:00:03]} 23. Qa7+ {[%clk 0:00:31]} 23... Kc8
{[%clk 0:00:02.7]} 24. Qa8+ {[%clk 0:00:30.1]} 24... Kd7 {[%clk 0:00:03.3]} 25.
Qxb7+ {[%clk 0:00:29.4]} 25... Ke8 {[%clk 0:00:04]} 26. Qb8+ {[%clk 0:00:29.1]}
26... Kd7 {[%clk 0:00:03.5]} 27. Bc5 {[%clk 0:00:23.1]} 27... Qd8 {[%clk
0:00:02.5]} 28. Qxd8+ {[%clk 0:00:20.5]} 28... Kxd8 {[%clk 0:00:03.4]} 29. Bxd6
{[%clk 0:00:20.7]} 29... Bxd6 {[%clk 0:00:04.3]} 30. Rd1 {[%clk 0:00:16.1]}
30... Kc7 {[%clk 0:00:04]} 31. Bxd5 {[%clk 0:00:16.2]} 31... Rb8 {[%clk
0:00:03.1]} 32. Bxe6 {[%clk 0:00:16.3]} 32... fxe6 {[%clk 0:00:04]} 33. Rxg7+
{[%clk 0:00:16.5]} 33... Kc6 {[%clk 0:00:03.8]} 34. Rg6 {[%clk 0:00:16.6]} 34...
Kc5 {[%clk 0:00:02.2]} 35. Rxe6 {[%clk 0:00:16.5]} 35... Bf4 {[%clk 0:00:03.1]}
36. b3 {[%clk 0:00:16.8]} 36... Rd8 {[%clk 0:00:02.6]} 37. Rxd8 {[%clk
0:00:16.2]} 1-0

[Event "Late-Titled-Tuesday-Blitz-September-26-2023"]
[Site "Chess.com"]
[Date "2023.09.26"]
[Round "7"]
[White "reevecanada"]
[Black "dedpihto_v_kozhanom_palto"]
[Result "0-1"]
[WhiteElo "2528"]
[BlackElo "2701"]
[TimeControl "180+1"]
[EndTime "15:14:29 PDT"]
[Termination "dedpihto_v_kozhanom_palto won on time"]

1. e4 {[%clk 0:03:00.9]} 1... g6 {[%clk 0:02:59.5]} 2. d4 {[%clk 0:02:56.8]}
2... Bg7 {[%clk 0:02:59.9]} 3. Be3 {[%clk 0:02:56.5]} 3... d6 {[%clk 0:03:00.4]}
4. Nc3 {[%clk 0:02:57]} 4... Nc6 {[%clk 0:03:01]} 5. f3 {[%clk 0:02:55.5]} 5...
e5 {[%clk 0:03:01.3]} 6. d5 {[%clk 0:02:55.3]} 6... Nce7 {[%clk 0:03:01.6]} 7.
Nge2 {[%clk 0:02:54.7]} 7... f5 {[%clk 0:03:02.1]} 8. Qd2 {[%clk 0:02:55]} 8...
Nf6 {[%clk 0:03:02.6]} 9. O-O-O {[%clk 0:02:55]} 9... O-O {[%clk 0:03:00.3]} 10.
h4 {[%clk 0:02:54.9]} 10... b5 {[%clk 0:02:58.9]} 11. exf5 {[%clk 0:02:47.9]}
11... b4 {[%clk 0:02:57.3]} 12. Ne4 {[%clk 0:02:47.8]} 12... Nxf5 {[%clk
0:02:57.2]} 13. Bg5 {[%clk 0:02:45.6]} 13... Qe8 {[%clk 0:02:20.7]} 14. Bxf6
{[%clk 0:02:38.6]} 14... Bxf6 {[%clk 0:02:21.6]} 15. g4 {[%clk 0:02:37.6]} 15...
Nd4 {[%clk 0:02:18.4]} 16. Nxd4 {[%clk 0:02:36.1]} 16... exd4 {[%clk 0:02:18.1]}
17. Nxf6+ {[%clk 0:02:19.2]} 17... Rxf6 {[%clk 0:02:19]} 18. Bg2 {[%clk
0:02:19.1]} 18... Qa4 {[%clk 0:02:01.9]} 19. Qxd4 {[%clk 0:02:16.5]} 19... Rf7
{[%clk 0:01:54.6]} 20. Kb1 {[%clk 0:02:14.3]} 20... Bd7 {[%clk 0:01:55]} 21.
Rhe1 {[%clk 0:02:12.9]} 21... Raf8 {[%clk 0:01:55.5]} 22. Re4 {[%clk 0:02:12.3]}
22... a5 {[%clk 0:01:53.6]} 23. Rde1 {[%clk 0:02:11.2]} 23... Qb5 {[%clk
0:01:53.7]} 24. Re7 {[%clk 0:02:07.1]} 24... a4 {[%clk 0:01:46.1]} 25. h5 {[%clk
0:02:05.7]} 25... b3 {[%clk 0:01:32.7]} 26. hxg6 {[%clk 0:01:59]} 26... hxg6
{[%clk 0:01:30.5]} 27. cxb3 {[%clk 0:01:28.7]} 27... axb3 {[%clk 0:01:31.4]} 28.
a3 {[%clk 0:01:24.8]} 28... Rxe7 {[%clk 0:01:22.8]} 29. Rxe7 {[%clk 0:01:23.4]}
29... Rf7 {[%clk 0:01:23.5]} 30. Rxf7 {[%clk 0:01:04.3]} 30... Kxf7 {[%clk
0:01:24.4]} 31. Qe4 {[%clk 0:00:58.5]} 31... Qc5 {[%clk 0:01:16]} 32. Bf1 {[%clk
0:00:50.6]} 32... Bb5 {[%clk 0:00:47.7]} 33. Qe6+ {[%clk 0:00:36.1]} 33... Kg7
{[%clk 0:00:37.1]} 34. Qe7+ {[%clk 0:00:24.2]} 34... Kg8 {[%clk 0:00:37.3]} 35.
Qe6+ {[%clk 0:00:22.8]} 35... Kg7 {[%clk 0:00:34.2]} 36. Qe7+ {[%clk 0:00:13.7]}
36... Kg8 {[%clk 0:00:34.7]} 37. Qe6+ {[%clk 0:00:13.9]} 37... Kf8 {[%clk
0:00:35.4]} 38. Qf6+ {[%clk 0:00:13.6]} 38... Ke8 {[%clk 0:00:35.8]} 39. Qxg6+
{[%clk 0:00:13.8]} 39... Kd8 {[%clk 0:00:35.4]} 40. Qg8+ {[%clk 0:00:10.4]}
40... Be8 {[%clk 0:00:30.5]} 41. Qg5+ {[%clk 0:00:09.9]} 41... Kc8 {[%clk
0:00:31]} 42. Qf5+ {[%clk 0:00:09.1]} 42... Bd7 {[%clk 0:00:31.1]} 43. Qd3
{[%clk 0:00:09.1]} 43... Bb5 {[%clk 0:00:26.4]} 44. Qf5+ {[%clk 0:00:06.6]}
44... Kb7 {[%clk 0:00:26.5]} 0-1

[Event "Late-Titled-Tuesday-Blitz-September-26-2023"]
[Site "Chess.com"]
[Date "2023.09.26"]
[Round "7"]
[White "rose107"]
[Black "valemava"]
[Result "0-1"]
[WhiteElo "2121"]
[BlackElo "2406"]
[TimeControl "180+1"]
[EndTime "15:14:32 PDT"]
[Termination "valemava won on time"]

1. e4 {[%clk 0:03:00.9]} 1... c5 {[%clk 0:02:40.1]} 2. c3 {[%clk 0:02:58.9]}
2... Qa5 {[%clk 0:02:40]} 3. Nf3 {[%clk 0:02:50.7]} 3... Nc6 {[%clk 0:02:37.9]}
4. d4 {[%clk 0:02:48.4]} 4... d6 {[%clk 0:02:26.7]} 5. d5 {[%clk 0:02:45.4]}
5... Nb8 {[%clk 0:02:25.2]} 6. Be2 {[%clk 0:02:41.6]} 6... g6 {[%clk 0:02:15.8]}
7. O-O {[%clk 0:02:40.9]} 7... Bg7 {[%clk 0:02:15.4]} 8. Nbd2 {[%clk 0:02:39.7]}
8... Nf6 {[%clk 0:02:11.3]} 9. Nc4 {[%clk 0:02:37.1]} 9... Qc7 {[%clk
0:02:10.6]} 10. Qc2 {[%clk 0:02:34.2]} 10... b5 {[%clk 0:02:09.2]} 11. Ncd2
{[%clk 0:02:25.9]} 11... a6 {[%clk 0:02:08.9]} 12. a4 {[%clk 0:02:22.5]} 12...
bxa4 {[%clk 0:02:02.1]} 13. Qxa4+ {[%clk 0:02:21.1]} 13... Nbd7 {[%clk
0:02:00.4]} 14. b3 {[%clk 0:01:42.7]} 14... O-O {[%clk 0:01:59.5]} 15. Bb2
{[%clk 0:01:42]} 15... Nb6 {[%clk 0:01:55.2]} 16. Qa2 {[%clk 0:01:41.3]} 16...
a5 {[%clk 0:01:54.2]} 17. Rfc1 {[%clk 0:01:31.6]} 17... Bd7 {[%clk 0:01:48.9]}
18. Qb1 {[%clk 0:01:23.9]} 18... Rfb8 {[%clk 0:01:44.4]} 19. h3 {[%clk 0:01:16]}
19... Bh6 {[%clk 0:01:39.1]} 20. Qd3 {[%clk 0:01:09.6]} 20... a4 {[%clk
0:01:36.4]} 21. b4 {[%clk 0:00:59.7]} 21... c4 {[%clk 0:01:34.2]} 22. Nxc4
{[%clk 0:00:54.9]} 22... Bxc1 {[%clk 0:01:32]} 23. Nxb6 {[%clk 0:00:49.4]} 23...
Qxb6 {[%clk 0:01:23.2]} 24. Bxc1 {[%clk 0:00:47.3]} 24... Be8 {[%clk 0:01:10.8]}
25. Be3 {[%clk 0:00:45.6]} 25... Qc7 {[%clk 0:01:09.5]} 26. Qd4 {[%clk
0:00:34.6]} 26... a3 {[%clk 0:01:08.4]} 27. Bg5 {[%clk 0:00:28.7]} 27... Qd8
{[%clk 0:01:02]} 28. e5 {[%clk 0:00:19.8]} 28... dxe5 {[%clk 0:01:00.3]} 29.
Nxe5 {[%clk 0:00:19.9]} 29... Qxd5 {[%clk 0:00:55.1]} 30. Qe3 {[%clk 0:00:18]}
30... Qe4 {[%clk 0:00:36.9]} 31. Qg3 {[%clk 0:00:13.1]} 31... a2 {[%clk
0:00:36.2]} 32. Bf3 {[%clk 0:00:11.3]} 32... Qb1+ {[%clk 0:00:35.3]} 33. Rxb1
{[%clk 0:00:10.7]} 33... axb1=Q+ {[%clk 0:00:35.2]} 34. Kh2 {[%clk 0:00:11.3]}
34... Ra1 {[%clk 0:00:33.2]} 35. Qh4 {[%clk 0:00:08.6]} 35... Qh1+ {[%clk
0:00:30]} 36. Kg3 {[%clk 0:00:09]} 36... Qe1 {[%clk 0:00:24.7]} 37. Bxf6 {[%clk
0:00:08.7]} 37... exf6 {[%clk 0:00:23.8]} 38. Qxf6 {[%clk 0:00:09]} 38... Qxc3
{[%clk 0:00:21.4]} 39. Qd6 {[%clk 0:00:04.5]} 39... Rc8 {[%clk 0:00:18.1]} 40.
Ng4 {[%clk 0:00:02.6]} 40... Qc7 {[%clk 0:00:16.6]} 0-1

[Event "Late-Titled-Tuesday-Blitz-September-26-2023"]
[Site "Chess.com"]
[Date "2023.09.26"]
[Round "7"]
[White "cassoulet"]
[Black "RonArtest77"]
[Result "1-0"]
[WhiteElo "2744"]
[BlackElo "2492"]
[TimeControl "180+1"]
[EndTime "15:14:34 PDT"]
[Termination "cassoulet won by resignation"]

1. d4 {[%clk 0:03:00.9]} 1... d5 {[%clk 0:02:56.5]} 2. Nf3 {[%clk 0:02:59.9]}
2... e6 {[%clk 0:02:56.7]} 3. Bf4 {[%clk 0:02:59.8]} 3... Bd6 {[%clk 0:02:55.5]}
4. e3 {[%clk 0:02:59.5]} 4... Ne7 {[%clk 0:02:56]} 5. Bd3 {[%clk 0:02:58.9]}
5... Ng6 {[%clk 0:02:55.2]} 6. Bg3 {[%clk 0:02:58.9]} 6... Qe7 {[%clk
0:02:47.8]} 7. Ne5 {[%clk 0:02:55.5]} 7... Nxe5 {[%clk 0:02:21.1]} 8. dxe5
{[%clk 0:02:56.4]} 8... Bb4+ {[%clk 0:02:21.7]} 9. c3 {[%clk 0:02:55.8]} 9...
Ba5 {[%clk 0:02:22.1]} 10. Qa4+ {[%clk 0:02:52.8]} 10... Nc6 {[%clk 0:02:21.3]}
11. Bb5 {[%clk 0:02:52.7]} 11... Bb6 {[%clk 0:01:39.9]} 12. Bxc6+ {[%clk
0:02:51]} 12... bxc6 {[%clk 0:01:40.8]} 13. Qxc6+ {[%clk 0:02:50.7]} 13... Qd7
{[%clk 0:01:41.5]} 14. Qxd7+ {[%clk 0:02:17.9]} 14... Bxd7 {[%clk 0:01:41.6]}
15. O-O {[%clk 0:02:12.5]} 15... c5 {[%clk 0:01:35.7]} 16. Nd2 {[%clk
0:02:09.7]} 16... Bb5 {[%clk 0:01:30.1]} 17. Rfd1 {[%clk 0:02:02.5]} 17... Be2
{[%clk 0:01:27.6]} 18. Re1 {[%clk 0:01:50.4]} 18... Bd3 {[%clk 0:01:27.7]} 19.
e4 {[%clk 0:01:49.1]} 19... Kd7 {[%clk 0:01:20.8]} 20. Rad1 {[%clk 0:01:40.1]}
20... Bc2 {[%clk 0:01:07.5]} 21. Rc1 {[%clk 0:01:39]} 21... Ba4 {[%clk 0:01:08]}
22. exd5 {[%clk 0:01:26.2]} 22... exd5 {[%clk 0:01:06.9]} 23. Nf3 {[%clk
0:01:12.4]} 23... h6 {[%clk 0:00:55.5]} 24. e6+ {[%clk 0:00:53.4]} 24... fxe6
{[%clk 0:00:55.9]} 25. Ne5+ {[%clk 0:00:53.6]} 25... Kc8 {[%clk 0:00:56]} 26.
Nf7 {[%clk 0:00:53.7]} 26... Rf8 {[%clk 0:00:48.9]} 27. Ne5 {[%clk 0:00:47.1]}
27... Kb7 {[%clk 0:00:43.1]} 28. Ng6 {[%clk 0:00:43.3]} 28... Rf6 {[%clk
0:00:42]} 29. Nf4 {[%clk 0:00:42]} 29... Bd7 {[%clk 0:00:39.8]} 30. c4 {[%clk
0:00:42.4]} 30... d4 {[%clk 0:00:29.1]} 31. Nd3 {[%clk 0:00:42.6]} 31... Re8
{[%clk 0:00:19.6]} 32. Re5 {[%clk 0:00:41.6]} 32... Rf5 {[%clk 0:00:10.9]} 33.
Rce1 {[%clk 0:00:35]} 33... Rxe5 {[%clk 0:00:11.4]} 34. Bxe5 {[%clk 0:00:35.2]}
34... g5 {[%clk 0:00:08]} 35. Bg7 {[%clk 0:00:34.6]} 35... h5 {[%clk 0:00:04.3]}
36. f3 {[%clk 0:00:33.8]} 36... Rg8 {[%clk 0:00:04.1]} 37. Bf6 {[%clk
0:00:33.4]} 37... g4 {[%clk 0:00:04.3]} 38. f4 {[%clk 0:00:33.9]} 38... h4
{[%clk 0:00:04.3]} 39. Bxh4 {[%clk 0:00:33.7]} 39... Bc7 {[%clk 0:00:02.6]} 40.
Nxc5+ {[%clk 0:00:32.9]} 40... Kc6 {[%clk 0:00:02.7]} 41. Nd3 {[%clk 0:00:32.5]}
41... Rb8 {[%clk 0:00:02.8]} 42. b3 {[%clk 0:00:32.4]} 42... Bd6 {[%clk
0:00:03.4]} 43. Bf6 {[%clk 0:00:32.4]} 43... Kc7 {[%clk 0:00:03.8]} 44. Bxd4
{[%clk 0:00:32.3]} 44... Rf8 {[%clk 0:00:04.1]} 45. Be5 {[%clk 0:00:31.2]} 45...
Bc6 {[%clk 0:00:03.8]} 46. Bxd6+ {[%clk 0:00:31.2]} 46... Kxd6 {[%clk
0:00:04.7]} 47. g3 {[%clk 0:00:31.6]} 47... Bb7 {[%clk 0:00:05.2]} 48. Kf2
{[%clk 0:00:32]} 48... Kd7 {[%clk 0:00:05.6]} 49. Nc5+ {[%clk 0:00:31.5]} 49...
Kc7 {[%clk 0:00:05.8]} 50. Nxe6+ {[%clk 0:00:31.7]} 1-0

[Event "Late-Titled-Tuesday-Blitz-September-26-2023"]
[Site "Chess.com"]
[Date "2023.09.26"]
[Round "7"]
[White "Sanan_Sjugirov"]
[Black "dropstoneDP"]
[Result "0-1"]
[WhiteElo "2971"]
[BlackElo "3112"]
[TimeControl "180+1"]
[EndTime "15:14:37 PDT"]
[Termination "dropstoneDP won by checkmate"]

1. e4 {[%clk 0:03:00.9]} 1... e5 {[%clk 0:02:57.6]} 2. Nf3 {[%clk 0:03:00.8]}
2... Nf6 {[%clk 0:02:57.7]} 3. Nxe5 {[%clk 0:02:59.7]} 3... d6 {[%clk
0:02:51.2]} 4. Nf3 {[%clk 0:02:58.4]} 4... Nxe4 {[%clk 0:02:51.3]} 5. Nc3 {[%clk
0:02:54.8]} 5... Nxc3 {[%clk 0:02:50.9]} 6. dxc3 {[%clk 0:02:55.7]} 6... Be7
{[%clk 0:02:51.7]} 7. Be3 {[%clk 0:02:55.8]} 7... O-O {[%clk 0:02:52.1]} 8. Qd2
{[%clk 0:02:56.5]} 8... Nd7 {[%clk 0:02:53]} 9. O-O-O {[%clk 0:02:57.1]} 9... c6
{[%clk 0:02:53.6]} 10. h4 {[%clk 0:02:48.8]} 10... d5 {[%clk 0:02:50.5]} 11. Bd3
{[%clk 0:02:45.1]} 11... Nf6 {[%clk 0:02:49.7]} 12. Bg5 {[%clk 0:02:28.8]} 12...
Re8 {[%clk 0:02:36.4]} 13. Kb1 {[%clk 0:02:16.6]} 13... Bg4 {[%clk 0:02:34.5]}
14. Rde1 {[%clk 0:01:56.6]} 14... Bxf3 {[%clk 0:01:46.5]} 15. gxf3 {[%clk
0:01:56.5]} 15... Nh5 {[%clk 0:01:47.1]} 16. Reg1 {[%clk 0:01:46.8]} 16... Qd6
{[%clk 0:01:36.4]} 17. a3 {[%clk 0:01:08]} 17... g6 {[%clk 0:01:28.3]} 18. Bxe7
{[%clk 0:00:48.1]} 18... Rxe7 {[%clk 0:01:25.9]} 19. Qh6 {[%clk 0:00:46.5]}
19... Qe5 {[%clk 0:00:34.1]} 20. f4 {[%clk 0:00:22.8]} 20... Nxf4 {[%clk
0:00:21.6]} 21. h5 {[%clk 0:00:22.7]} 21... Nxd3 {[%clk 0:00:21.7]} 22. cxd3
{[%clk 0:00:16.8]} 22... Qf5 {[%clk 0:00:19.8]} 23. Rg3 {[%clk 0:00:09.9]} 23...
Rae8 {[%clk 0:00:16.6]} 24. Ka2 {[%clk 0:00:08.2]} 24... d4 {[%clk 0:00:16.3]}
25. c4 {[%clk 0:00:08]} 25... b5 {[%clk 0:00:08.4]} 26. hxg6 {[%clk 0:00:06.9]}
26... fxg6 {[%clk 0:00:08.6]} 27. Rhg1 {[%clk 0:00:03.9]} 27... Rg7 {[%clk
0:00:05.6]} 28. Qh4 {[%clk 0:00:04.1]} 28... bxc4 {[%clk 0:00:05]} 29. dxc4
{[%clk 0:00:03.7]} 29... Qxf2 {[%clk 0:00:05.1]} 30. Qg4 {[%clk 0:00:01.7]}
30... Rb7 {[%clk 0:00:04]} 31. R3g2 {[%clk 0:00:01.5]} 31... Rxb2+ {[%clk
0:00:03.9]} 32. Ka1 {[%clk 0:00:02]} 32... Ra2+ {[%clk 0:00:04.8]} 33. Kb1
{[%clk 0:00:02.5]} 33... Rb8+ {[%clk 0:00:04]} 34. Kc1 {[%clk 0:00:02.9]} 34...
Ra1# {[%clk 0:00:04.9]} 0-1

[Event "Late-Titled-Tuesday-Blitz-September-26-2023"]
[Site "Chess.com"]
[Date "2023.09.26"]
[Round "7"]
[White "zajka-molotok"]
[Black "Javylavilla"]
[Result "1-0"]
[WhiteElo "2559"]
[BlackElo "2342"]
[TimeControl "180+1"]
[EndTime "15:14:39 PDT"]
[Termination "zajka-molotok won by resignation"]

1. e4 {[%clk 0:03:00.9]} 1... e6 {[%clk 0:02:53.3]} 2. d4 {[%clk 0:03:00.1]}
2... d5 {[%clk 0:02:52.9]} 3. exd5 {[%clk 0:03:01]} 3... exd5 {[%clk 0:02:52.8]}
4. Nf3 {[%clk 0:03:00.9]} 4... Bd6 {[%clk 0:02:52.6]} 5. Bd3 {[%clk 0:03:00.7]}
5... Ne7 {[%clk 0:02:52.8]} 6. O-O {[%clk 0:02:58.3]} 6... Nd7 {[%clk
0:02:52.5]} 7. Re1 {[%clk 0:02:54.1]} 7... Nf6 {[%clk 0:02:52.1]} 8. Bg5 {[%clk
0:02:53.7]} 8... Bg4 {[%clk 0:02:50.5]} 9. Bxf6 {[%clk 0:02:52.7]} 9... gxf6
{[%clk 0:02:50.1]} 10. Nbd2 {[%clk 0:02:52.1]} 10... Qd7 {[%clk 0:02:49.4]} 11.
c3 {[%clk 0:02:48.2]} 11... O-O-O {[%clk 0:02:49.1]} 12. Qc2 {[%clk 0:02:31.6]}
12... Kb8 {[%clk 0:02:42.4]} 13. a4 {[%clk 0:02:04.6]} 13... Rdg8 {[%clk
0:02:41.9]} 14. Kh1 {[%clk 0:02:04.4]} 14... h5 {[%clk 0:02:33]} 15. Bf1 {[%clk
0:01:57.5]} 15... c6 {[%clk 0:02:31.5]} 16. b4 {[%clk 0:01:55.7]} 16... Bc7
{[%clk 0:02:23.9]} 17. b5 {[%clk 0:01:49.9]} 17... Qd6 {[%clk 0:02:22]} 18. h3
{[%clk 0:01:49.6]} 18... Bf5 {[%clk 0:02:18]} 19. Bd3 {[%clk 0:01:45.9]} 19...
Be6 {[%clk 0:01:41.8]} 20. Rab1 {[%clk 0:01:35.8]} 20... c5 {[%clk 0:01:39.9]}
21. dxc5 {[%clk 0:01:31.4]} 21... Qxc5 {[%clk 0:01:39]} 22. Nb3 {[%clk
0:01:29.3]} 22... Qd6 {[%clk 0:01:37.7]} 23. Nbd4 {[%clk 0:01:29.3]} 23... Bc8
{[%clk 0:01:08.8]} 24. c4 {[%clk 0:01:13.3]} 24... dxc4 {[%clk 0:01:07.3]} 25.
Bxc4 {[%clk 0:01:12.8]} 25... Ng6 {[%clk 0:01:04.7]} 26. Rbd1 {[%clk 0:01:06.7]}
26... Qf4 {[%clk 0:01:01.2]} 27. Bxf7 {[%clk 0:00:58.8]} 27... Nh4 {[%clk
0:01:00.8]} 28. Bxg8 {[%clk 0:00:55.8]} 28... Nxg2 {[%clk 0:00:56.3]} 29. Re7
{[%clk 0:00:28.2]} 29... Rxg8 {[%clk 0:00:50]} 30. Qxc7+ {[%clk 0:00:21.3]}
30... Qxc7 {[%clk 0:00:49.2]} 31. Rxc7 {[%clk 0:00:22.2]} 31... Kxc7 {[%clk
0:00:49.6]} 32. Rg1 {[%clk 0:00:19.4]} 32... Bxh3 {[%clk 0:00:49.5]} 33. Kh2
{[%clk 0:00:19.4]} 33... Bg4 {[%clk 0:00:46.3]} 34. Rxg2 {[%clk 0:00:18.9]}
34... Rd8 {[%clk 0:00:44.8]} 35. Rg3 {[%clk 0:00:16.5]} 35... Kb6 {[%clk
0:00:43.6]} 36. Rg1 {[%clk 0:00:14.7]} 36... Kc5 {[%clk 0:00:43.6]} 37. Rc1+
{[%clk 0:00:14.6]} 37... Kd5 {[%clk 0:00:42.9]} 38. Kg3 {[%clk 0:00:14.2]} 38...
Rg8 {[%clk 0:00:41.1]} 39. Kf4 {[%clk 0:00:14.3]} 39... Re8 {[%clk 0:00:39.7]}
40. Rc7 {[%clk 0:00:08.1]} 40... Re4+ {[%clk 0:00:39.4]} 41. Kg3 {[%clk
0:00:08.3]} 41... h4+ {[%clk 0:00:38.1]} 42. Kg2 {[%clk 0:00:04.4]} 42... h3+
{[%clk 0:00:37.3]} 43. Kg3 {[%clk 0:00:04.8]} 43... h2 {[%clk 0:00:37.2]} 44.
Nxh2 {[%clk 0:00:04.7]} 44... Bd1 {[%clk 0:00:33.9]} 45. Ndf3 {[%clk 0:00:04.4]}
45... Bxa4 {[%clk 0:00:33]} 46. Rxb7 {[%clk 0:00:04.7]} 46... Bd1 {[%clk
0:00:31.3]} 47. Rxa7 {[%clk 0:00:04.3]} 47... Rb4 {[%clk 0:00:31.6]} 48. Rd7+
{[%clk 0:00:03.7]} 48... Ke6 {[%clk 0:00:30]} 49. Rxd1 {[%clk 0:00:04.6]} 49...
Rxb5 {[%clk 0:00:30.3]} 50. Nd4+ {[%clk 0:00:04.8]} 1-0